[Event "Chessable Masters - Torneo preliminare"]
[White "Cardoso Cardoso, Jose Gabriel"]
[Black "Ibarra Jerez, Jose Carlos"]
[WhiteFideId "4430492"]
[BlackFideId "2226332"]
[WhiteElo "2425"]
[BlackElo "2546"]
[Result "0-1"]
[Round "9"]
[TimeControl "600+2"]
[Date "2023.03.13"]
[WhiteClock "0:01:50"]
[BlackClock "0:01:47"]

1. d4 {[%clk 0:10:01]}  Nf6 {[%clk 0:09:59]} 2. c4 {[%clk 0:10:02]}  d6 {[%clk 0:10:00]} 3. Nf3 {[%clk 0:09:58]}  g6 {[%clk 0:10:00]} 4. Nc3 {[%clk 0:09:58]}  Bf5 {[%clk 0:10:01]} 5. Nh4 {[%clk 0:09:46]}  Bd7 {[%clk 0:10:01]} 6. Nf3 {[%clk 0:09:47]}  Bf5 {[%clk 0:09:59]} 7. g3 {[%clk 0:09:36]}  Ne4 {[%clk 0:09:58]} 8. Nd5 {[%clk 0:09:29]}  c6 {[%clk 0:09:57]} 9. Ne3 {[%clk 0:09:25]}  Qa5+ {[%clk 0:09:54]} 10. Nd2 {[%clk 0:09:14]}  Bg7 {[%clk 0:09:53]} 11. f3 {[%clk 0:08:02]}  Nxd2 {[%clk 0:05:38]} 12. Bxd2 {[%clk 0:08:00]}  Qb6 {[%clk 0:05:39]} 13. Nxf5 {[%clk 0:07:51]}  gxf5 {[%clk 0:05:41]} 14. Bc3 {[%clk 0:07:50]}  c5 {[%clk 0:05:36]} 15. d5 {[%clk 0:06:38]}  Bxc3+ {[%clk 0:05:35]} 16. bxc3 {[%clk 0:06:40]}  Qb2 {[%clk 0:05:25]} 17. Rc1 {[%clk 0:06:30]}  Nd7 {[%clk 0:04:56]} 18. Rc2 {[%clk 0:06:28]}  Qa3 {[%clk 0:04:38]} 19. Qd3 {[%clk 0:06:28]}  Ne5 {[%clk 0:04:33]} 20. Qxf5 {[%clk 0:06:25]}  Nxc4 {[%clk 0:04:33]} 21. Qe4 {[%clk 0:06:22]}  b5 {[%clk 0:03:53]} 22. Bh3 {[%clk 0:06:20]}  Qa4 {[%clk 0:03:44]} 23. O-O {[%clk 0:04:43]}  Ne3 {[%clk 0:03:38]} 24. Qxe3 {[%clk 0:04:03]}  Qxc2 {[%clk 0:03:37]} 25. Rc1 {[%clk 0:04:04]}  Qxa2 {[%clk 0:03:32]} 26. Qd3 {[%clk 0:04:06]}  Qc4 {[%clk 0:03:21]} 27. Qf5 {[%clk 0:04:07]}  Rd8 {[%clk 0:03:22]} 28. Ra1 {[%clk 0:03:54]}  Qxe2 {[%clk 0:03:10]} 29. Rxa7 {[%clk 0:03:55]}  Qe3+ {[%clk 0:03:00]} 30. Kg2 {[%clk 0:03:49]}  O-O {[%clk 0:02:53]} 31. Qg4+ {[%clk 0:03:04]}  Kh8 {[%clk 0:02:51]} 32. Qh4 {[%clk 0:03:05]}  Qe2+ {[%clk 0:02:22]} 33. Kg1 {[%clk 0:03:06]}  Qxf3 {[%clk 0:02:08]} 34. Rxe7 {[%clk 0:02:12]}  Ra8 {[%clk 0:02:05]} 35. Re1 {[%clk 0:02:08]}  Qxc3 {[%clk 0:02:05]} 36. Re4 {[%clk 0:01:59]}  Ra1+ {[%clk 0:01:59]} 37. Kf2 {[%clk 0:02:00]}  Ra2+ {[%clk 0:01:57]} 38. Kf1 {[%clk 0:01:53]}  Qf3+ {[%clk 0:01:52]} 39. Ke1 {[%clk 0:01:50]}  Qf2+ {[%clk 0:01:47]} 0-1


[Site "Internet"]

[Event "Chessable Masters - Torneo preliminare"]
[White "Salgado Lopez, Ivan"]
[Black "Weetik, Vjacheslav"]
[WhiteFideId "2257327"]
[BlackFideId "4153472"]
[WhiteElo "2554"]
[BlackElo "2445"]
[Result "1-0"]
[Round "9"]
[TimeControl "600+2"]
[Date "2023.03.13"]
[WhiteClock "0:04:16"]
[BlackClock "0:02:28"]

1. e4 {[%clk 0:10:01]}  c6 {[%clk 0:10:00]} 2. d4 {[%clk 0:10:00]}  d5 {[%clk 0:10:01]} 3. exd5 {[%clk 0:10:02]}  cxd5 {[%clk 0:10:03]} 4. Bd3 {[%clk 0:10:03]}  Nc6 {[%clk 0:10:04]} 5. c3 {[%clk 0:10:03]}  g6 {[%clk 0:10:02]} 6. Nf3 {[%clk 0:10:00]}  Bf5 {[%clk 0:10:02]} 7. O-O {[%clk 0:09:59]}  Qc7 {[%clk 0:09:45]} 8. Re1 {[%clk 0:09:57]}  e6 {[%clk 0:09:29]} 9. Bxf5 {[%clk 0:09:38]}  gxf5 {[%clk 0:09:30]} 10. Nh4 {[%clk 0:09:39]}  O-O-O {[%clk 0:09:26]} 11. Bg5 {[%clk 0:08:54]}  Be7 {[%clk 0:08:26]} 12. Bxe7 {[%clk 0:08:42]}  Ngxe7 {[%clk 0:08:27]} 13. Nd2 {[%clk 0:08:44]}  Ng6 {[%clk 0:08:25]} 14. Ndf3 {[%clk 0:08:09]}  Rhg8 {[%clk 0:08:18]} 15. Nxg6 {[%clk 0:07:58]}  Rxg6 {[%clk 0:08:00]} 16. Ne5 {[%clk 0:07:46]}  Nxe5 {[%clk 0:07:55]} 17. Rxe5 {[%clk 0:07:46]}  Rdg8 {[%clk 0:07:55]} 18. g3 {[%clk 0:07:47]}  Rg4 {[%clk 0:07:44]} 19. Qf3 {[%clk 0:07:30]}  h5 {[%clk 0:07:40]} 20. h3 {[%clk 0:07:08]}  R4g5 {[%clk 0:07:36]} 21. Kh1 {[%clk 0:06:49]}  Qb6 {[%clk 0:07:10]} 22. b3 {[%clk 0:06:43]}  a6 {[%clk 0:07:04]} 23. Qf4 {[%clk 0:06:32]}  Qc6 {[%clk 0:06:40]} 24. Rc1 {[%clk 0:06:27]}  b5 {[%clk 0:06:33]} 25. Kh2 {[%clk 0:06:22]}  Kb7 {[%clk 0:06:33]} 26. a4 {[%clk 0:06:03]}  bxa4 {[%clk 0:06:07]} 27. bxa4 {[%clk 0:05:52]}  h4 {[%clk 0:05:42]} 28. Qxh4 {[%clk 0:05:40]}  Qxa4 {[%clk 0:05:43]} 29. Qf4 {[%clk 0:05:24]}  Qa2 {[%clk 0:05:35]} 30. Ree1 {[%clk 0:05:18]}  Rxg3 {[%clk 0:05:21]} 31. Rb1+ {[%clk 0:05:05]}  Kc6 {[%clk 0:05:20]} 32. c4 {[%clk 0:04:58]}  dxc4 {[%clk 0:03:53]} 33. d5+ {[%clk 0:04:57]}  exd5 {[%clk 0:03:33]} 34. Qd4 {[%clk 0:04:37]}  Rb3 {[%clk 0:03:03]} 35. Ra1 {[%clk 0:04:19]}  Rd3 {[%clk 0:02:28]} 36. Qf6+ {[%clk 0:04:16]} 1-0


[Site "Internet"]

[Event "Chessable Masters - Torneo preliminare"]
[White "Xu, Yinglun"]
[Black "Santos Ruiz, Miguel"]
[WhiteFideId "8604940"]
[BlackFideId "22291482"]
[WhiteElo "2523"]
[BlackElo "2491"]
[Result "1-0"]
[Round "9"]
[TimeControl "600+2"]
[Date "2023.03.13"]
[WhiteClock "0:05:02"]
[BlackClock "0:08:01"]

1. c4 {[%clk 0:10:01]}  e5 {[%clk 0:09:36]} 2. g3 {[%clk 0:10:00]}  d5 {[%clk 0:09:33]} 3. cxd5 {[%clk 0:09:54]}  Qxd5 {[%clk 0:09:35]} 4. Nf3 {[%clk 0:09:51]}  Nc6 {[%clk 0:09:32]} 5. Nc3 {[%clk 0:09:47]}  Qe6 {[%clk 0:09:33]} 6. Bg2 {[%clk 0:09:45]}  Nf6 {[%clk 0:09:34]} 7. O-O {[%clk 0:09:45]}  Bc5 {[%clk 0:09:35]} 8. d3 {[%clk 0:09:39]}  O-O {[%clk 0:09:35]} 9. Ng5 {[%clk 0:09:38]}  Qe8 {[%clk 0:09:31]} 10. Bd2 {[%clk 0:09:33]}  Bb6 {[%clk 0:09:28]} 11. Rc1 {[%clk 0:09:31]}  h6 {[%clk 0:09:27]} 12. Nge4 {[%clk 0:09:31]}  Nxe4 {[%clk 0:09:27]} 13. Nxe4 {[%clk 0:09:27]}  Qe7 {[%clk 0:09:25]} 14. a3 {[%clk 0:09:28]}  a5 {[%clk 0:09:25]} 15. Nc3 {[%clk 0:09:25]}  Be6 {[%clk 0:09:19]} 16. Nd5 {[%clk 0:09:19]}  Qd7 {[%clk 0:09:20]} 17. Nxb6 {[%clk 0:09:13]}  cxb6 {[%clk 0:09:22]} 18. Be3 {[%clk 0:09:08]}  b5 {[%clk 0:09:23]} 19. Qd2 {[%clk 0:09:01]}  b4 {[%clk 0:09:21]} 20. axb4 {[%clk 0:08:54]}  axb4 {[%clk 0:09:19]} 21. Rc5 {[%clk 0:08:10]}  Ra2 {[%clk 0:09:14]} 22. Bxc6 {[%clk 0:07:52]}  bxc6 {[%clk 0:09:15]} 23. Qxb4 {[%clk 0:07:53]}  Bd5 {[%clk 0:09:07]} 24. f3 {[%clk 0:07:44]}  Qd6 {[%clk 0:08:52]} 25. Rb5 {[%clk 0:07:21]}  Qf6 {[%clk 0:08:43]} 26. Rb6 {[%clk 0:07:07]}  Rfa8 {[%clk 0:08:40]} 27. Bf2 {[%clk 0:06:57]}  Ra1 {[%clk 0:08:40]} 28. Rb8+ {[%clk 0:06:55]}  Kh7 {[%clk 0:08:38]} 29. Rxa8 {[%clk 0:06:56]}  Rxa8 {[%clk 0:08:39]} 30. Qc3 {[%clk 0:06:54]}  Ra2 {[%clk 0:08:37]} 31. Rc1 {[%clk 0:06:54]}  g5 {[%clk 0:08:35]} 32. e4 {[%clk 0:06:02]}  Be6 {[%clk 0:08:33]} 33. d4 {[%clk 0:06:04]}  g4 {[%clk 0:08:13]} 34. d5 {[%clk 0:05:36]}  cxd5 {[%clk 0:08:13]} 35. exd5 {[%clk 0:05:38]}  Bd7 {[%clk 0:08:10]} 36. f4 {[%clk 0:05:35]}  Qa6 {[%clk 0:08:06]} 37. Qxe5 {[%clk 0:05:19]}  Qd3 {[%clk 0:08:01]} 38. Bd4 {[%clk 0:05:02]} 1-0


[Site "Internet"]

[Event "Chessable Masters - Torneo preliminare"]
[White "Makhnev, Denis"]
[Black "Iniyan, P"]
[WhiteFideId "13707647"]
[BlackFideId "25002767"]
[WhiteElo "2505"]
[BlackElo "2441"]
[Result "0-1"]
[Round "9"]
[TimeControl "600+2"]
[Date "2023.03.13"]
[WhiteClock "0:00:07"]
[BlackClock "0:00:23"]

1. d4 {[%clk 0:09:57]}  Nf6 {[%clk 0:10:00]} 2. c4 {[%clk 0:09:58]}  e6 {[%clk 0:10:01]} 3. Nf3 {[%clk 0:09:57]}  d5 {[%clk 0:10:02]} 4. Nc3 {[%clk 0:09:58]}  Bb4 {[%clk 0:10:03]} 5. Qa4+ {[%clk 0:09:59]}  Nc6 {[%clk 0:10:04]} 6. e3 {[%clk 0:10:01]}  O-O {[%clk 0:10:05]} 7. Qc2 {[%clk 0:10:03]}  Re8 {[%clk 0:10:03]} 8. Bd2 {[%clk 0:10:04]}  Bd6 {[%clk 0:10:02]} 9. c5 {[%clk 0:09:48]}  Bf8 {[%clk 0:10:03]} 10. Bb5 {[%clk 0:09:50]}  Bd7 {[%clk 0:10:04]} 11. O-O {[%clk 0:09:50]}  Nb4 {[%clk 0:09:59]} 12. Qa4 {[%clk 0:09:47]}  Bxb5 {[%clk 0:10:00]} 13. Qxb5 {[%clk 0:09:48]}  a5 {[%clk 0:09:43]} 14. a3 {[%clk 0:08:38]}  c6 {[%clk 0:09:42]} 15. Qe2 {[%clk 0:08:39]}  Na6 {[%clk 0:09:42]} 16. Na4 {[%clk 0:08:40]}  Nd7 {[%clk 0:09:41]} 17. Nb6 {[%clk 0:08:09]}  Nxb6 {[%clk 0:09:39]} 18. Bxa5 {[%clk 0:08:04]}  Nxc5 {[%clk 0:09:40]} 19. Bxb6 {[%clk 0:07:14]}  Qxb6 {[%clk 0:09:42]} 20. dxc5 {[%clk 0:07:15]}  Bxc5 {[%clk 0:09:44]} 21. Ne5 {[%clk 0:07:16]}  Bd6 {[%clk 0:09:41]} 22. Nd3 {[%clk 0:07:15]}  c5 {[%clk 0:09:42]} 23. Rfd1 {[%clk 0:07:09]}  c4 {[%clk 0:09:43]} 24. Ne1 {[%clk 0:07:10]}  Be5 {[%clk 0:09:40]} 25. Rab1 {[%clk 0:07:11]}  f5 {[%clk 0:09:40]} 26. Qc2 {[%clk 0:06:51]}  Ra5 {[%clk 0:09:21]} 27. b3 {[%clk 0:06:32]}  Qc6 {[%clk 0:09:02]} 28. bxc4 {[%clk 0:06:27]}  dxc4 {[%clk 0:09:04]} 29. Nf3 {[%clk 0:06:14]}  Bf6 {[%clk 0:09:05]} 30. Nd4 {[%clk 0:05:57]}  Qa6 {[%clk 0:09:06]} 31. a4 {[%clk 0:05:37]}  Rc8 {[%clk 0:08:51]} 32. Nb5 {[%clk 0:04:51]}  Rxa4 {[%clk 0:08:24]} 33. Nd6 {[%clk 0:04:13]}  Ra2 {[%clk 0:07:39]} 34. Qc1 {[%clk 0:04:09]}  Rc7 {[%clk 0:07:14]} 35. Ne8 {[%clk 0:03:54]}  Re7 {[%clk 0:06:57]} 36. Rd8 {[%clk 0:03:26]}  Kf7 {[%clk 0:06:57]} 37. Qd1 {[%clk 0:02:41]}  Kg6 {[%clk 0:05:36]} 38. Nxf6 {[%clk 0:02:28]}  gxf6 {[%clk 0:03:36]} 39. h4 {[%clk 0:01:15]}  Qa5 {[%clk 0:03:10]} 40. Rg8+ {[%clk 0:00:29]}  Kf7 {[%clk 0:03:10]} 41. Rg3 {[%clk 0:00:29]}  f4 {[%clk 0:02:23]} 42. exf4 {[%clk 0:00:28]}  Qf5 {[%clk 0:02:12]} 43. Kh2 {[%clk 0:00:16]}  Ra8 {[%clk 0:02:03]} 44. Rb6 {[%clk 0:00:07]}  Rg8 {[%clk 0:01:54]} 45. Rxg8 {[%clk 0:00:05]}  Kxg8 {[%clk 0:01:56]} 46. Qd8+ {[%clk 0:00:04]}  Kf7 {[%clk 0:01:57]} 47. g3 {[%clk 0:00:04]}  Qc5 {[%clk 0:01:58]} 48. Kg1 {[%clk 0:00:03]}  Qc7 {[%clk 0:01:47]} 49. Qd4 {[%clk 0:00:03]}  Rd7 {[%clk 0:01:45]} 50. Qe3 {[%clk 0:00:03]}  Rd6 {[%clk 0:01:44]} 51. Rb1 {[%clk 0:00:04]}  Qc6 {[%clk 0:01:33]} 52. f5 {[%clk 0:00:05]}  c3 {[%clk 0:01:17]} 53. Qh6 {[%clk 0:00:05]}  c2 {[%clk 0:00:54]} 54. Qxh7+ {[%clk 0:00:05]}  Kf8 {[%clk 0:00:55]} 55. Qh6+ {[%clk 0:00:06]}  Ke7 {[%clk 0:00:56]} 56. Qg7+ {[%clk 0:00:03]}  Kd8 {[%clk 0:00:56]} 57. Rf1 {[%clk 0:00:03]}  Rd1 {[%clk 0:00:29]} 58. Qxf6+ {[%clk 0:00:04]}  Kc8 {[%clk 0:00:19]} 59. Qf8+ {[%clk 0:00:03]}  Kc7 {[%clk 0:00:19]} 60. Qe7+ {[%clk 0:00:04]}  Kb8 {[%clk 0:00:19]} 61. Qf8+ {[%clk 0:00:04]}  Qc8 {[%clk 0:00:20]} 62. Qb4 {[%clk 0:00:02]}  Rxf1+ {[%clk 0:00:20]} 63. Kxf1 {[%clk 0:00:04]}  c1=Q+ {[%clk 0:00:21]} 64. Kg2 {[%clk 0:00:06]}  Q1c6+ {[%clk 0:00:22]} 65. Kh2 {[%clk 0:00:07]}  exf5 {[%clk 0:00:23]} 0-1


[Site "Internet"]

[Event "Chessable Masters - Torneo preliminare"]
[White "Flores, Diego"]
[Black "Narayanan, Srinath"]
[WhiteFideId "108049"]
[BlackFideId "5018420"]
[WhiteElo "2598"]
[BlackElo "2482"]
[Result "1-0"]
[Round "9"]
[TimeControl "600+2"]
[Date "2023.03.13"]
[WhiteClock "0:03:25"]
[BlackClock "0:01:26"]

1. c4 {[%clk 0:10:01]}  e5 {[%clk 0:09:45]} 2. Nc3 {[%clk 0:10:00]}  Nc6 {[%clk 0:09:46]} 3. Nf3 {[%clk 0:09:50]}  f5 {[%clk 0:09:46]} 4. d4 {[%clk 0:09:43]}  e4 {[%clk 0:09:46]} 5. Ng5 {[%clk 0:09:34]}  Nf6 {[%clk 0:09:43]} 6. Nh3 {[%clk 0:09:09]}  d5 {[%clk 0:09:32]} 7. Bg5 {[%clk 0:09:06]}  dxc4 {[%clk 0:09:26]} 8. e3 {[%clk 0:09:07]}  h6 {[%clk 0:09:07]} 9. Bxf6 {[%clk 0:08:50]}  Qxf6 {[%clk 0:09:09]} 10. Nf4 {[%clk 0:08:34]}  Qf7 {[%clk 0:08:54]} 11. Be2 {[%clk 0:08:33]}  Ne7 {[%clk 0:07:37]} 12. Nb5 {[%clk 0:07:48]}  Kd8 {[%clk 0:07:15]} 13. d5 {[%clk 0:07:47]}  Bd7 {[%clk 0:04:22]} 14. Ne6+ {[%clk 0:07:20]}  Kc8 {[%clk 0:04:22]} 15. Nbxc7 {[%clk 0:07:08]}  Rb8 {[%clk 0:04:04]} 16. Bxc4 {[%clk 0:07:09]}  Ng6 {[%clk 0:03:45]} 17. Rc1 {[%clk 0:06:21]}  Bb4+ {[%clk 0:03:37]} 18. Kf1 {[%clk 0:06:20]}  b5 {[%clk 0:02:53]} 19. Be2 {[%clk 0:05:28]}  Kb7 {[%clk 0:02:32]} 20. Qb3 {[%clk 0:05:20]}  Qe7 {[%clk 0:01:50]} 21. a3 {[%clk 0:05:06]}  Bd2 {[%clk 0:01:49]} 22. Bxb5 {[%clk 0:04:53]}  a5 {[%clk 0:01:40]} 23. Bxd7+ {[%clk 0:03:53]}  Ka7 {[%clk 0:01:39]} 24. Nb5+ {[%clk 0:03:49]}  Ka8 {[%clk 0:01:26]} 25. Bc6+ {[%clk 0:03:25]} 1-0


[Site "Internet"]

[Event "Chessable Masters - Torneo preliminare"]
[White "Vetoshko, Volodymyr"]
[Black "Hammer, Jon Ludvig"]
[WhiteFideId "14122480"]
[BlackFideId "1503707"]
[WhiteElo "2457"]
[BlackElo "2647"]
[Result "1-0"]
[Round "9"]
[TimeControl "600+2"]
[Date "2023.03.13"]
[WhiteClock "0:01:02"]
[BlackClock "0:02:52"]

1. e4 {[%clk 0:10:01]}  e5 {[%clk 0:09:59]} 2. Nf3 {[%clk 0:10:02]}  Nc6 {[%clk 0:09:59]} 3. Nc3 {[%clk 0:10:03]}  Nf6 {[%clk 0:09:57]} 4. d4 {[%clk 0:10:02]}  exd4 {[%clk 0:09:55]} 5. Nxd4 {[%clk 0:10:04]}  Nxe4 {[%clk 0:09:49]} 6. Nxe4 {[%clk 0:09:58]}  Qe7 {[%clk 0:09:50]} 7. Bd3 {[%clk 0:09:59]}  Nxd4 {[%clk 0:09:50]} 8. O-O {[%clk 0:10:00]}  Ne6 {[%clk 0:09:31]} 9. Bc4 {[%clk 0:09:54]}  c6 {[%clk 0:07:30]} 10. Bxe6 {[%clk 0:09:51]}  dxe6 {[%clk 0:07:15]} 11. Qh5 {[%clk 0:09:46]}  g6 {[%clk 0:06:17]} 12. Qe5 {[%clk 0:09:09]}  f6 {[%clk 0:06:17]} 13. Nxf6+ {[%clk 0:08:51]}  Kf7 {[%clk 0:06:17]} 14. Nh5 {[%clk 0:04:47]}  Qc5 {[%clk 0:06:16]} 15. Qxh8 {[%clk 0:04:08]}  Qxh5 {[%clk 0:06:15]} 16. Bf4 {[%clk 0:03:47]}  Bg7 {[%clk 0:05:58]} 17. Qd8 {[%clk 0:03:45]}  Qd5 {[%clk 0:06:00]} 18. Qh4 {[%clk 0:03:15]}  Qc4 {[%clk 0:05:33]} 19. Qg3 {[%clk 0:02:13]}  Bxb2 {[%clk 0:05:21]} 20. Rad1 {[%clk 0:02:11]}  Bf6 {[%clk 0:05:03]} 21. Be5 {[%clk 0:02:05]}  Qxc2 {[%clk 0:03:24]} 22. Bxf6 {[%clk 0:01:57]}  Kxf6 {[%clk 0:03:26]} 23. Rd8 {[%clk 0:01:31]}  e5 {[%clk 0:02:54]} 24. Qh4+ {[%clk 0:01:04]}  g5 {[%clk 0:02:50]} 25. Qh6+ {[%clk 0:01:04]}  Qg6 {[%clk 0:02:51]} 26. Qf8+ {[%clk 0:01:02]}  Qf7 {[%clk 0:02:50]} 27. Rd6+ {[%clk 0:01:02]}  Be6 {[%clk 0:02:52]} 28. Qxa8 {[%clk 0:01:02]} 1-0


[Site "Internet"]

[Event "Chessable Masters - Torneo preliminare"]
[White "Tan, Zhongyi"]
[Black "Sasikiran, Krishnan"]
[WhiteFideId "8603642"]
[BlackFideId "5004985"]
[WhiteElo "2517"]
[BlackElo "2559"]
[Result "0-1"]
[Round "9"]
[TimeControl "600+2"]
[Date "2023.03.13"]
[WhiteClock "0:04:22"]
[BlackClock "0:03:09"]

1. d4 {[%clk 0:10:01]}  Nf6 {[%clk 0:10:00]} 2. c4 {[%clk 0:10:02]}  e6 {[%clk 0:10:02]} 3. Nc3 {[%clk 0:10:03]}  Bb4 {[%clk 0:10:03]} 4. e3 {[%clk 0:10:04]}  O-O {[%clk 0:10:03]} 5. Bd3 {[%clk 0:10:04]}  d5 {[%clk 0:10:04]} 6. Ne2 {[%clk 0:10:03]}  dxc4 {[%clk 0:09:51]} 7. Bxc4 {[%clk 0:10:05]}  c5 {[%clk 0:09:52]} 8. O-O {[%clk 0:10:04]}  cxd4 {[%clk 0:09:51]} 9. exd4 {[%clk 0:10:04]}  Nc6 {[%clk 0:09:51]} 10. a3 {[%clk 0:09:58]}  Bd6 {[%clk 0:09:33]} 11. h3 {[%clk 0:09:18]}  h6 {[%clk 0:08:46]} 12. Qd3 {[%clk 0:09:04]}  b6 {[%clk 0:08:43]} 13. Rd1 {[%clk 0:09:03]}  Bb7 {[%clk 0:08:42]} 14. Be3 {[%clk 0:08:54]}  Ne7 {[%clk 0:08:40]} 15. Rac1 {[%clk 0:08:42]}  Rc8 {[%clk 0:08:36]} 16. Ba2 {[%clk 0:08:38]}  a6 {[%clk 0:08:23]} 17. Bb1 {[%clk 0:08:34]}  Re8 {[%clk 0:07:58]} 18. Nf4 {[%clk 0:08:29]}  Nf5 {[%clk 0:07:35]} 19. Bd2 {[%clk 0:07:46]}  Bxf4 {[%clk 0:06:54]} 20. Bxf4 {[%clk 0:07:45]}  Nd5 {[%clk 0:06:55]} 21. Be5 {[%clk 0:07:22]}  Qg5 {[%clk 0:06:42]} 22. Ne4 {[%clk 0:06:12]}  Qxc1 {[%clk 0:05:11]} 23. Rxc1 {[%clk 0:06:11]}  Rxc1+ {[%clk 0:05:12]} 24. Kh2 {[%clk 0:06:13]}  f6 {[%clk 0:05:10]} 25. Nd6 {[%clk 0:05:53]}  fxe5 {[%clk 0:05:02]} 26. Nxe8 {[%clk 0:05:32]}  Nf4 {[%clk 0:05:01]} 27. Qd2 {[%clk 0:05:12]}  Rxb1 {[%clk 0:04:48]} 28. dxe5 {[%clk 0:05:13]}  Bxg2 {[%clk 0:04:28]} 29. Qxf4 {[%clk 0:04:55]}  Bc6 {[%clk 0:04:27]} 30. Nf6+ {[%clk 0:04:29]}  gxf6 {[%clk 0:04:22]} 31. f3 {[%clk 0:04:30]}  Rf1 {[%clk 0:03:36]} 32. Qg4+ {[%clk 0:04:22]}  Kf7 {[%clk 0:03:27]} 33. Qh5+ {[%clk 0:04:22]}  Ke7 {[%clk 0:03:11]} 34. exf6+ {[%clk 0:04:22]}  Kxf6 {[%clk 0:03:09]} 0-1


[Site "Internet"]

[Event "Chessable Masters - Torneo preliminare"]
[White "Steinberg, Nitzan"]
[Black "Drygalov, Sergey"]
[WhiteFideId "2801795"]
[BlackFideId "24171743"]
[WhiteElo "2500"]
[BlackElo "2461"]
[Result "1/2-1/2"]
[Round "9"]
[TimeControl "600+2"]
[Date "2023.03.13"]
[WhiteClock "0:00:35"]
[BlackClock "0:00:15"]

1. e4 {[%clk 0:10:01]}  c5 {[%clk 0:10:00]} 2. Nf3 {[%clk 0:10:02]}  d6 {[%clk 0:10:01]} 3. d4 {[%clk 0:10:03]}  cxd4 {[%clk 0:10:03]} 4. Nxd4 {[%clk 0:10:04]}  Nf6 {[%clk 0:10:05]} 5. Nc3 {[%clk 0:10:06]}  a6 {[%clk 0:10:07]} 6. g3 {[%clk 0:10:07]}  e5 {[%clk 0:10:07]} 7. Nb3 {[%clk 0:10:07]}  Be6 {[%clk 0:10:04]} 8. Bg2 {[%clk 0:10:06]}  Be7 {[%clk 0:10:02]} 9. O-O {[%clk 0:10:05]}  O-O {[%clk 0:10:03]} 10. a4 {[%clk 0:09:33]}  Nbd7 {[%clk 0:09:48]} 11. Qe2 {[%clk 0:09:00]}  Qc7 {[%clk 0:09:40]} 12. Rd1 {[%clk 0:09:00]}  Rac8 {[%clk 0:09:34]} 13. a5 {[%clk 0:08:39]}  Nc5 {[%clk 0:08:51]} 14. Nd2 {[%clk 0:08:23]}  Rfd8 {[%clk 0:08:26]} 15. Nf1 {[%clk 0:08:21]}  b5 {[%clk 0:08:09]} 16. axb6 {[%clk 0:08:10]}  Qxb6 {[%clk 0:08:10]} 17. Ne3 {[%clk 0:08:09]}  Qb4 {[%clk 0:07:43]} 18. Ned5 {[%clk 0:07:27]}  Nxd5 {[%clk 0:07:41]} 19. Nxd5 {[%clk 0:07:28]}  Bxd5 {[%clk 0:07:19]} 20. Rxd5 {[%clk 0:07:28]}  a5 {[%clk 0:07:18]} 21. h4 {[%clk 0:07:16]}  a4 {[%clk 0:07:15]} 22. Kh2 {[%clk 0:06:56]}  Rb8 {[%clk 0:07:13]} 23. Ra3 {[%clk 0:06:55]}  Rdc8 {[%clk 0:07:07]} 24. Rc3 {[%clk 0:06:11]}  Qb7 {[%clk 0:06:32]} 25. h5 {[%clk 0:05:34]}  Ne6 {[%clk 0:06:26]} 26. Rb5 {[%clk 0:05:05]}  Qa8 {[%clk 0:06:16]} 27. Rxc8+ {[%clk 0:04:36]}  Rxc8 {[%clk 0:06:18]} 28. c3 {[%clk 0:04:37]}  Qa6 {[%clk 0:05:08]} 29. Bf1 {[%clk 0:04:23]}  Qc6 {[%clk 0:04:34]} 30. Rb4 {[%clk 0:03:38]}  Nc5 {[%clk 0:04:05]} 31. Qb5 {[%clk 0:03:19]}  Qxb5 {[%clk 0:03:10]} 32. Bxb5 {[%clk 0:03:19]}  Rb8 {[%clk 0:03:12]} 33. Be3 {[%clk 0:02:45]}  d5 {[%clk 0:02:58]} 34. Bc6 {[%clk 0:01:29]}  Rxb4 {[%clk 0:02:56]} 35. cxb4 {[%clk 0:01:30]}  Nd3 {[%clk 0:02:57]} 36. b5 {[%clk 0:01:26]}  d4 {[%clk 0:02:08]} 37. Bd2 {[%clk 0:01:27]}  Bc5 {[%clk 0:01:50]} 38. Ba5 {[%clk 0:01:02]}  Nxb2 {[%clk 0:01:19]} 39. b6 {[%clk 0:00:28]}  Bxb6 {[%clk 0:01:19]} 40. Bxb6 {[%clk 0:00:29]}  a3 {[%clk 0:01:21]} 41. Bd5 {[%clk 0:00:29]}  Na4 {[%clk 0:01:22]} 42. Bc7 {[%clk 0:00:22]}  Nc3 {[%clk 0:01:00]} 43. Bb3 {[%clk 0:00:15]}  a2 {[%clk 0:00:23]} 44. Bxa2 {[%clk 0:00:16]}  Nxa2 {[%clk 0:00:23]} 45. Bxe5 {[%clk 0:00:18]}  d3 {[%clk 0:00:24]} 46. Bf4 {[%clk 0:00:19]}  Nc3 {[%clk 0:00:24]} 47. Kg2 {[%clk 0:00:20]}  Nxe4 {[%clk 0:00:22]} 48. Kf3 {[%clk 0:00:22]}  d2 {[%clk 0:00:15]} 49. Ke2 {[%clk 0:00:23]}  Nxf2 {[%clk 0:00:16]} 50. Kxd2 {[%clk 0:00:21]}  Ng4 {[%clk 0:00:15]} 51. Ke2 {[%clk 0:00:22]}  h6 {[%clk 0:00:15]} 52. Kf3 {[%clk 0:00:23]}  f5 {[%clk 0:00:14]} 53. Bc1 {[%clk 0:00:17]}  Kf7 {[%clk 0:00:14]} 54. Bb2 {[%clk 0:00:15]}  Nf6 {[%clk 0:00:11]} 55. Kf4 {[%clk 0:00:12]}  Nxh5+ {[%clk 0:00:08]} 56. Kxf5 {[%clk 0:00:13]}  Nxg3+ {[%clk 0:00:09]} 57. Kg4 {[%clk 0:00:14]}  Nf1 {[%clk 0:00:07]} 58. Bc1 {[%clk 0:00:12]}  Kg6 {[%clk 0:00:06]} 59. Kh3 {[%clk 0:00:12]}  Kf5 {[%clk 0:00:02]} 60. Kg2 {[%clk 0:00:13]}  Kg4 {[%clk 0:00:04]} 61. Kxf1 {[%clk 0:00:14]}  h5 {[%clk 0:00:05]} 62. Kg1 {[%clk 0:00:16]}  g5 {[%clk 0:00:07]} 63. Bxg5 {[%clk 0:00:14]}  Kxg5 {[%clk 0:00:08]} 64. Kh2 {[%clk 0:00:16]}  Kg4 {[%clk 0:00:10]} 65. Kh1 {[%clk 0:00:17]}  h4 {[%clk 0:00:12]} 66. Kh2 {[%clk 0:00:19]}  Kh5 {[%clk 0:00:13]} 67. Kh3 {[%clk 0:00:20]}  Kg5 {[%clk 0:00:14]} 68. Kh2 {[%clk 0:00:21]}  Kg4 {[%clk 0:00:16]} 69. Kg2 {[%clk 0:00:23]}  h3+ {[%clk 0:00:18]} 70. Kh2 {[%clk 0:00:24]}  Kh4 {[%clk 0:00:17]} 71. Kh1 {[%clk 0:00:26]}  Kg3 {[%clk 0:00:19]} 72. Kg1 {[%clk 0:00:27]}  Kf3 {[%clk 0:00:20]} 73. Kh2 {[%clk 0:00:28]}  Kg4 {[%clk 0:00:22]} 74. Kh1 {[%clk 0:00:30]}  Kh4 {[%clk 0:00:23]} 75. Kh2 {[%clk 0:00:31]}  Kg4 {[%clk 0:00:12]} 76. Kh1 {[%clk 0:00:32]}  Kg3 {[%clk 0:00:12]} 77. Kg1 {[%clk 0:00:34]}  h2+ {[%clk 0:00:13]} 78. Kh1 {[%clk 0:00:35]}  Kh3 {[%clk 0:00:15]} 1/2-1/2


[Site "Internet"]